bitfinex/quotes_ETHUSD_20250814
["timestamp","ask_amount","ask_price","bid_price","bid_amount"]
[1755193842642,7.44431045,4533.5,4533.4,0.001]
[1755193843939,7.44483956,4533.5,4533.4,0.001]
[1755193845052,7.44483956,4533.5,4533.3,0.001]
[1755193845260,2.96068822,4533.4,4533.3,0.001]
[1755193845546,2.96068822,4533.4,4532.4,0.001]
[1755193845547,2.75628792,4532.5,4532.4,0.001]
[1755193845708,6.55152623,4532.5,4532.4,0.001]
[1755193845912,7.44232623,4532.5,4532.4,0.001]
[1755193846852,7.44232623,4532.5,4532.4,1e-08]
[1755193847227,3.96232623,4532.5,4532.4,1e-08]
[1755193847426,7.44332623,4532.5,4532.4,1e-08]
[1755193848319,7.44132623,4532.5,4532.4,1e-08]
[1755193849146,10.44132623,4532.5,4532.4,1e-08]
[1755193849684,10.55172623,4532.5,4532.4,1e-08]
[1755193849863,11.02422913,4532.5,4532.4,1e-08]
[1755193852052,7.54522913,4532.5,4532.4,1e-08]
[1755193852255,11.02322913,4532.5,4532.4,1e-08]
[1755193852416,7.07288323,4532.5,4532.4,1e-08]
[1755193852622,10.55188323,4532.5,4532.4,1e-08]
[1755193853478,7.07288323,4532.5,4532.4,1e-08]
[1755193853681,9.54968323,4532.5,4532.4,1e-08]
[1755193854240,10.47629961,4532.5,4532.4,1e-08]
[1755193854797,9.54949961,4532.5,4532.4,1e-08]
[1755193855383,6.54949961,4532.5,4532.4,1e-08]
[1755193855585,0.31521169,4532.5,4532.4,1e-08]
[1755193855890,3.477,4532.5,4532.4,1e-08]
[1755193856247,5.68328792,4532.5,4532.4,1e-08]
[1755193856455,5.79368792,4532.5,4532.4,1e-08]
[1755193856655,3.5874,4532.5,4532.4,1e-08]
[1755193857286,0.1104,4532.5,4532.4,1e-08]
[1755193857449,3.5874,4532.5,4532.4,0.92730001]
[1755193857981,3.477,4532.5,4532.4,0.92730001]
[1755193859245,2.31654556,4532.8,4532.4,0.92730001]
[1755193859482,3.477,4532.7,4532.5,0.9273]
[1755193859713,3.477,4532.7,4532.6,0.4961]
[1755193859880,6.516,4532.7,4532.6,0.4961]
[1755193860048,3.039,4532.7,4532.6,0.9273]
[1755193860248,3.039,4533.5,4532.6,0.9273]
[1755193860445,0.002,4533.9,4533.8,2.2056553]
[1755193860648,3.477,4535.1,4534.0,2.205558]
[1755193860848,3.48,4535.1,4534.1,0.94935509]
[1755193861070,3.48,4535.1,4535.0,0.1104]
[1755193861579,5.79543078,4535.1,4534.3,0.1104]
[1755193861778,2.20517881,4534.8,4534.3,0.1104]
[1755193862098,3.487,4534.7,4534.3,0.1104]
[1755193862504,2.20545837,4534.3,4533.1,0.4961]
[1755193862699,3.487,4534.2,4533.7,0.1104]
[1755193862903,2.2056553,4533.8,4532.4,1e-08]
[1755193863103,2.20590445,4533.3,4532.4,1e-08]
[1755193863302,3.486,4533.2,4532.4,1e-08]
[1755193863478,3.489,4533.1,4532.4,1e-08]
[1755193864881,3.488,4533.0,4532.4,0.31346774]
[1755193865205,3.488,4533.0,4532.5,2.20626898]
[1755193865510,3.488,4533.0,4532.6,0.4961]
[1755193865708,3.488,4533.0,4532.6,2.70232606]
[1755193865884,3.487,4532.9,4532.7,3.13349057]
[1755193866080,3.487,4533.1,4533.0,2.20599772]
[1755193866404,3.487,4533.2,4533.1,2.20596416]
[1755193866580,3.487,4533.2,4533.1,0.9273]
[1755193867705,3.487,4533.2,4533.1,0.4961]
[1755193867904,3.487,4533.2,4532.4,1e-08]
[1755193868096,3.487,4533.2,4532.4,0.34971001]
[1755193868291,2.20608422,4533.0,4532.4,0.34971001]
[1755193868599,2.20609327,4532.9,4532.4,0.34971001]
[1755193868907,3.484,4532.9,4532.5,0.9273]
[1755193869072,3.484,4532.9,4532.5,0.4312]
[1755193869269,3.484,4532.9,4532.6,0.4961]
[1755193869584,3.484,4532.9,4532.7,0.9273]
[1755193869779,3.484,4532.9,4532.8,0.4961]
[1755193870507,3.484,4532.9,4532.4,1e-08]
[1755193870719,5.69009774,4532.9,4532.4,1e-08]
[1755193870930,2.20623431,4532.7,4532.4,1e-08]
[1755193871107,2.20615094,4532.8,4532.4,1e-08]
[1755193871315,2.20620035,4532.7,4532.4,1e-08]
[1755193871676,5.69011692,4532.9,4532.4,1e-08]
[1755193871873,3.484,4532.9,4532.4,1e-08]
[1755193872315,2.20623252,4532.7,4532.4,1e-08]
[1755193872528,3.484,4532.9,4532.4,1e-08]
[1755193872897,2.20614543,4532.8,4532.6,0.1104]
[1755193873224,3.484,4532.9,4532.8,0.1104]
[1755193873435,5.69009322,4532.9,4532.8,0.1104]
[1755193873576,3.484,4532.9,4532.8,0.1104]
[1755193874009,0.1104,4533.8,4532.8,0.1104]
[1755193874209,3.48,4533.7,4533.3,2.20588644]
[1755193874411,3.48,4534.2,4533.7,2.316097]
[1755193874578,2.20482538,4535.6,4534.1,0.1104]
[1755193874579,3.481,4534.5,4534.1,0.1104]
[1755193874778,2.20472073,4535.8,4533.4,0.22058864]
[1755193874779,3.481,4535.1,4534.7,2.2052138]
[1755193875110,3.481,4535.2,4534.7,0.4961]
[1755193875316,0.1104,4535.9,4535.0,0.1104]
[1755193875317,3.482,4535.1,4535.0,0.1104]
[1755193875484,2.20512418,4534.9,4534.8,0.1104]
[1755193876379,2.20507875,4535.0,4534.8,0.1104]
[1755193876609,3.9547,4535.1,4534.8,0.1104]
[1755193876784,6.15973283,4535.1,4534.8,0.1104]
[1755193877119,3.482,4535.1,4534.8,0.1104]
[1755193877501,5.7677,4536.1,4534.8,0.1104]
[1755193877720,2.20498393,4535.2,4534.8,0.1104]
[1755193877892,3.48,4535.1,4534.8,0.1104]
[1755193878218,3.48,4535.0,4534.8,0.1104]
[1755193878388,3.48,4535.0,4534.0,2.20554718]
[1755193878588,2.20512805,4534.9,4534.8,0.1104]
[1755193878818,3.48,4535.0,4534.8,0.1104]
[1755193879115,2.20512028,4534.9,4534.8,0.1104]
[1755193881432,2.20535481,4534.5,4533.8,0.4971]
[1755193881594,0.4727,4534.9,4533.8,0.4971]
[1755193881595,2.20516891,4534.8,4534.6,0.1104]
[1755193881934,4.3986,4534.7,4533.8,0.001]
[1755193882132,2.20539099,4534.4,4533.8,0.001]
[1755193882432,2.20560665,4533.9,4533.8,0.1114]
[1755193882730,6.60320665,4533.9,4533.8,0.001]
[1755193884731,6.60320665,4533.9,4533.4,1e-08]
[1755193884732,2.75580125,4533.5,4533.4,1e-08]
[1755193884936,7.15440125,4533.5,4533.4,1e-08]
[1755193889816,10.19340125,4533.5,4533.4,1e-08]
[1755193890707,7.15440125,4533.5,4533.4,1e-08]
[1755193894033,10.15440125,4533.5,4533.4,1e-08]
[1755193894838,10.26480125,4533.5,4533.4,1e-08]
[1755193897247,9.82290125,4533.5,4533.4,1e-08]
[1755193897461,10.26480125,4533.5,4533.4,1e-08]
[1755193898059,2.75604456,4533.0,4532.9,1e-08]
[1755193898224,7.26504456,4533.0,4532.9,1e-08]
[1755193898426,2.86644456,4533.0,4532.9,1e-08]
[1755193898624,2.31644456,4533.0,4532.9,1e-08]
[1755193898937,5.79244456,4533.0,4532.9,1e-08]
[1755193899760,5.68204456,4533.0,4532.9,1e-08]
[1755193899973,2.20597663,4533.2,4532.9,1e-08]
[1755193899974,2.20602548,4533.1,4532.9,1e-08]
[1755193900173,0.1104,4533.6,4533.0,0.4392]
[1755193900480,0.1104,4533.6,4532.9,0.11040001]
[1755193900481,2.20604456,4533.0,4532.9,0.11040001]
[1755193900651,5.68204456,4533.0,4532.9,0.11040001]
[1755193902149,5.68204456,4533.0,4532.9,1e-08]
[1755193902853,5.79244456,4533.0,4532.9,1e-08]
[1755193903051,5.68204456,4533.0,4532.9,0.91230001]
[1755193903347,5.68204456,4533.0,4532.9,0.47310001]
[1755193903547,5.68204456,4533.0,4532.9,1e-08]
[1755193904944,8.72104456,4533.0,4532.9,1e-08]
[1755193906797,6.515,4533.0,4532.9,1e-08]
[1755193906989,5.68204456,4533.0,4532.9,0.91230001]
[1755193907298,5.68204456,4533.0,4532.9,1e-08]
[1755193907856,6.71504456,4533.0,4532.9,1e-08]
[1755193908050,7.26504456,4533.0,4532.9,1e-08]
[1755193908700,10.26504456,4533.0,4532.9,1e-08]
[1755193908845,13.30404456,4533.0,4532.9,1e-08]
[1755193911919,2.75628792,4532.5,4532.4,1e-08]
[1755193912084,6.34268792,4532.5,4532.4,1e-08]
[1755193912284,5.79268792,4532.5,4532.4,1e-08]
[1755193913098,5.79268792,4532.5,4532.4,0.49940001]
[1755193913297,3.476,4532.5,4532.4,0.93520001]
[1755193913627,3.476,4533.0,4532.5,2.20628792]
[1755193913830,3.476,4533.0,4532.9,0.1104]
[1755193914046,3.476,4533.0,4532.9,1.0456]
[1755193914243,0.002,4533.5,4532.9,1.0456]
[1755193914420,3.478,4533.5,4533.0,2.20600592]
[1755193914622,3.478,4533.5,4533.1,0.9352]
[1755193914818,3.478,4533.5,4533.2,0.32516059]
[1755193915018,3.478,4533.5,4533.4,0.1104]
[1755193915221,5.68380125,4533.5,4533.4,0.1104]
[1755193919329,8.72280125,4533.5,4533.4,0.1104]
[1755193920261,0.002,4533.5,4533.4,0.1104]
[1755193920412,0.002,4533.5,4533.4,1.0456]
[1755193920615,0.002,4533.5,4533.4,3.57659865]
[1755193920839,0.002,4533.5,4533.4,1.37074874]
[1755193921043,0.002,4533.5,4533.4,1.0456]
[1755193921259,0.002,4533.5,4533.4,0.1104]
[1755193921460,0.002,4533.5,4533.4,2.75204991]
[1755193921787,0.002,4533.5,4533.4,1.0456]
[1755193922067,0.002,4533.5,4533.4,3.25144991]
[1755193922264,0.002,4533.5,4533.4,3.79718913]
[1755193922867,0.002,4533.5,4533.4,6.81924762]
[1755193923070,0.002,4534.4,4534.3,2.20541208]
[1755193923435,0.002,4534.4,4534.3,3.2730662]
[1755193923678,0.002,4534.4,4534.3,3.25101208]
[1755193923973,0.002,4534.4,4534.3,3.79666148]
[1755193924347,0.002,4534.4,4534.3,1.5912494]
[1755193924542,0.002,4534.4,4534.3,0.6560494]
[1755193924742,0.002,4534.4,4534.3,0.1104]
[1755193925564,0.002,4534.4,4534.3,0.6098]
[1755193925877,0.002,4534.4,4534.3,1.0456]
[1755193926175,0.002,4534.4,4534.3,0.6098]
[1755193928077,0.002,4534.4,4534.3,0.1104]
[1755193928254,2.20736344,4534.4,4534.3,0.1104]
[1755193929772,0.002,4534.4,4534.3,0.1104]
[1755193930001,0.002,4534.4,4534.3,2.20541208]
[1755193930171,0.002,4534.5,4534.4,2.20536344]
[1755193930495,0.002,4534.9,4534.8,2.20516891]
[1755193930695,0.002,4534.9,4534.8,3.14036891]
[1755193932190,0.002,4534.9,4534.8,6.14036891]
[1755193932410,0.002,4534.9,4534.8,5.20516891]
[1755193932598,0.002,4534.9,4534.8,3.74104087]
[1755193932763,0.002,4534.9,4534.8,5.20516891]
[1755193933097,0.002,4534.9,4534.4,2.20533409]
[1755193933297,0.002,4534.9,4534.6,2.20524212]
[1755193933497,0.002,4534.9,4534.2,3.0]
[1755193933685,0.002,4534.9,4534.1,0.4994]
[1755193933886,0.002,4534.9,4534.2,3.44082]
[1755193934068,0.002,4534.9,4534.7,2.20518711]
[1755193934269,0.002,4534.9,4534.2,0.44082]
[1755193934458,0.002,4534.9,4534.4,2.20535462]
[1755193935105,0.002,4534.9,4533.9,3.0]
[1755193935402,0.002,4534.9,4534.0,0.4358]
[1755193935572,0.002,4534.9,4534.2,3.0]
[1755193935778,2.20712193,4534.9,4533.9,3.0]
[1755193935979,2.20712193,4534.9,4533.9,3.91770153]
[1755193936182,0.002,4534.9,4534.0,3.0]
[1755193936387,0.002,4534.9,4533.9,0.91770153]
[1755193936788,2.20534806,4534.5,4533.7,2.20569799]
[1755193936993,5.67734806,4534.5,4533.7,2.15569799]
[1755193937310,0.4688,4534.8,4533.8,0.02205655]
[1755193937608,6.513,4534.9,4534.0,2.20551255]
[1755193937904,6.513,4534.9,4534.1,2.20549708]
[1755193938114,6.513,4534.9,4533.7,3.0]
[1755193938405,6.513,4534.9,4534.2,2.20544874]
[1755193939311,3.041,4534.9,4534.3,2.20539818]
[1755193939507,3.041,4534.9,4534.4,2.20532554]
[1755193939702,3.041,4534.9,4534.5,2.20530159]
[1755193940073,3.041,4534.9,4534.8,0.1104]
[1755193940607,3.4789,4534.9,4534.8,0.1104]
[1755193940807,3.9477,4534.9,4534.8,0.1104]
[1755193941014,3.4789,4534.9,4534.8,0.1104]
[1755193941382,6.15282028,4534.9,4534.8,0.1104]
[1755193942410,3.041,4534.9,4534.8,0.1104]
[1755193943085,8.71712028,4534.9,4534.8,0.1104]
[1755193943273,9.17402028,4534.9,4534.8,0.1104]
[1755193943474,6.512,4534.9,4534.8,0.1104]
[1755193943885,3.041,4534.9,4534.8,0.1104]
[1755193948198,6.19242028,4534.9,4534.8,0.1104]
[1755193948398,2.20537577,4534.4,4533.6,2.20674788]
[1755193948721,3.471,4534.3,4533.7,0.52067479]
[1755193948925,3.471,4534.3,4533.7,2.72636844]
[1755193949091,3.471,4534.3,4534.2,0.1104]
[1755193950211,2.2052256,4534.7,4534.2,0.1104]
[1755193950515,3.471,4534.6,4534.2,0.578]
[1755193950702,3.471,4534.6,4533.7,1.42747479]
[1755193950902,3.471,4534.6,4533.9,2.20556215]
[1755193951222,3.471,4534.6,4533.8,0.48994748]
[1755193951624,6.512,4534.9,4534.5,0.1104]
[1755193951825,3.041,4534.9,4534.5,0.1104]
[1755193952026,3.041,4534.9,4534.0,0.4676]
[1755193952027,3.041,4534.9,4534.4,2.20535962]
[1755193952325,6.512,4534.9,4534.8,0.1104]
[1755193952691,3.473,4534.9,4534.8,0.1104]
[1755193953023,6.13502028,4534.9,4534.8,0.1104]
[1755193953205,3.9299,4534.9,4534.8,0.1104]
[1755193953403,3.473,4534.9,4534.8,0.1104]
[1755193955216,5.67812028,4534.9,4534.8,0.1104]
[1755193955409,3.473,4534.9,4534.8,0.1104]
[1755193957792,0.002,4534.9,4534.8,0.1104]
[1755193958041,0.002,4534.9,4534.8,3.01472995]
[1755193958348,0.002,4534.9,4534.8,6.47598163]
[1755193958547,0.002,4534.9,4534.8,6.45392995]
[1755193958756,0.002,4535.4,4535.3,2.2049258]
[1755193958910,0.002,4535.8,4535.5,2.20482857]
[1755193959114,0.002,4535.8,4535.5,4.30132401]
[1755193960005,0.002,4536.1,4535.7,2.20473135]
[1755193960210,0.002,4536.1,4535.8,2.20468274]
[1755193960448,0.002,4536.1,4535.8,0.1104]
[1755193960811,0.002,4536.1,4535.8,2.33712956]
[1755193961014,0.002,4536.1,4535.8,2.76927325]
[1755193961235,0.002,4536.1,4535.8,3.23687325]
[1755193961440,0.002,4536.1,4535.8,0.56459051]
[1755193961862,0.002,4536.1,4535.8,0.1104]
[1755193962217,0.4589,4535.9,4535.8,0.1104]
[1755193962614,0.002,4535.9,4535.8,0.1104]
[1755193962839,0.002,4535.9,4535.8,2.31508274]
[1755193963728,0.002,4535.9,4535.8,2.80472956]
[1755193963940,0.002,4535.9,4535.8,3.630532]
[1755193964345,0.002,4535.9,4535.8,4.069732]
[1755193964547,0.002,4536.1,4536.0,2.20458553]
[1755193964849,0.002,4536.3,4536.2,2.20448833]
[1755193965036,0.002,4537.3,4536.8,2.20419679]
[1755193965240,1e-08,4536.9,4536.8,6.88141647]
[1755193965551,0.002,4537.3,4537.2,2.20400246]
[1755193965851,0.002,4537.3,4537.2,6.24324248]
[1755193966019,0.002,4537.3,4537.2,6.88353239]
[1755193966245,0.002,4538.8,4538.2,2.20351681]
[1755193966430,0.002,4538.8,4538.2,2.64422745]
[1755193966727,0.002,4538.8,4538.2,3.22222745]
[1755193966931,0.002,4538.8,4538.2,3.68346261]
[1755193967132,0.002,4538.8,4538.2,6.68346261]
[1755193967333,0.002,4538.8,4538.7,2.20327406]
[1755193967571,0.002,4538.8,4538.7,6.2219362]
[1755193968392,0.002,4538.8,4538.7,5.7543362]
[1755193968675,0.002,4538.8,4538.7,6.2219362]
[1755193968833,0.002,4538.8,4538.7,0.55106214]
[1755193969040,0.9483,4538.8,4538.7,0.1104]
[1755193969340,0.002,4538.8,4538.7,0.1104]
[1755193969941,0.9483,4538.8,4538.7,0.1104]
[1755193971170,3.15152552,4538.8,4538.7,0.1104]
[1755193971368,0.9483,4538.8,4538.7,0.1104]
[1755193972282,3.15152552,4538.8,4538.7,0.1104]
[1755193972500,0.9483,4538.8,4536.8,0.65771968]
[1755193972636,0.9483,4538.8,4537.0,3.466]
[1755193972637,3.13687406,4538.7,4537.0,3.466]
[1755193972834,2.2033714,4538.5,4537.6,2.20377792]
[1755193973164,2.2033714,4538.5,4537.7,2.20375948]
[1755193973528,0.4364,4538.4,4537.2,2.20400246]
[1755193973777,0.4364,4538.4,4537.3,3.0]
[1755193973991,0.4972,4538.7,4538.0,2.20361132]
[1755193974187,0.4972,4538.7,4537.6,2.20376908]
[1755193974387,3.9024,4538.6,4537.4,6.02425808]
[1755193974534,3.9024,4538.6,4537.5,3.0]
[1755193974535,2.20353019,4538.2,4537.5,3.0]
[1755193974736,0.9336,4538.1,4537.5,3.0]
[1755193974946,0.9336,4538.1,4537.6,2.58580935]
[1755193975153,0.4972,4538.1,4537.6,0.38204003]
[1755193975348,0.4364,4538.0,4537.7,2.20375137]
[1755193975795,0.4364,4538.0,4537.6,2.58584341]
[1755193975994,0.4364,4538.0,4537.6,0.38204003]
[1755193976194,0.4364,4538.0,4537.6,2.58582197]
[1755193976363,0.4364,4538.0,4537.7,0.2585822]
[1755193976560,0.4364,4537.9,4536.9,3.466]
[1755193976870,0.9336,4537.9,4537.2,2.2039887]
[1755193977073,0.4364,4537.9,4537.3,2.20393847]
[1755193977287,0.4364,4537.9,4537.1,2.20400535]
[1755193977446,2.64006902,4537.9,4537.1,2.204031]
[1755193977638,2.64006902,4537.9,4537.2,0.2204031]
[1755193977943,0.4364,4537.9,4537.2,2.20398981]
[1755193978448,3.13726944,4537.9,4537.1,3.0]
[1755193978649,3.13726527,4537.9,4537.2,2.20398466]
[1755193979051,0.9336,4537.9,4537.1,5.20403718]
[1755193979246,2.20352161,4538.2,4537.1,3.0]
[1755193979452,6.60217109,4538.1,4537.3,2.20390552]
[1755193979652,4.3986,4538.1,4537.2,0.52041079]
[1755193980048,4.3986,4538.1,4537.6,2.20380002]
[1755193980248,0.4364,4538.0,4537.2,0.52041079]
[1755193980593,0.4364,4538.3,4537.7,2.20375719]
[1755193980746,0.4364,4538.3,4537.6,2.2038014]
[1755193980946,0.4364,4538.3,4537.6,2.20379135]
[1755193981178,3.465,4538.5,4538.1,2.20352177]
[1755193981380,3.465,4538.5,4537.6,3.6324878]
[1755193981581,0.002,4538.8,4538.2,2.2035058]
[1755193981782,0.002,4538.8,4537.7,0.88363445]
[1755193982083,0.002,4538.8,4533.2,1.19201368]
[1755193982084,2.20340947,4538.5,4535.9,2.20463414]
[1755193982288,0.9336,4538.4,4536.1,2.20453693]
[1755193982486,2.20391857,4537.4,4536.7,2.20423936]
[1755193982695,2.20389875,4537.5,4536.0,0.22056341]
[1755193982879,5.66895429,4537.3,4536.0,0.38185472]
[1755193983060,0.4364,4537.2,4536.5,2.20430372]
[1755193983260,0.4364,4537.2,4536.5,0.22043037]
[1755193983460,0.4364,4537.2,4537.1,0.1104]
[1755193983760,0.9336,4537.2,4537.1,0.1104]
[1755193984255,3.465,4537.3,4537.1,0.1104]
[1755193984456,0.4364,4537.2,4537.1,0.1104]
[1755193984765,0.9336,4537.2,4537.1,0.1104]
[1755193985189,3.039,4537.9,4537.1,0.1104]
[1755193985410,5.24266248,4537.9,4537.8,0.1104]
[1755193985579,5.66766248,4537.9,4537.8,0.1104]
[1755193985980,6.60126248,4537.9,4537.8,0.1104]
[1755193986909,3.13726248,4537.9,4537.8,0.1104]
[1755193987211,6.60126248,4537.9,4537.8,0.1104]
[1755193988423,3.9004,4537.9,4537.8,0.1104]
[1755193988621,6.60126248,4537.9,4537.8,0.1104]
[1755193989392,9.64026248,4537.9,4537.8,0.1104]
[1755193989591,2.20386937,4537.5,4537.4,0.1104]
[1755193989804,9.64046937,4537.5,4537.4,0.1104]
[1755193993504,6.60146937,4537.5,4537.4,0.1104]
[1755193993840,2.20429396,4536.6,4536.5,0.001]
[1755193994025,6.60089396,4536.6,4536.5,0.001]
[1755193995139,7.15089396,4536.6,4536.5,1e-08]
[1755193996469,2.75453693,4536.1,4536.0,1e-08]
[1755193996770,7.26153693,4536.1,4536.0,1e-08]
[1755193998542,10.26153693,4536.1,4536.0,1e-08]
[1755193998742,10.26153693,4536.1,4533.7,0.4967]
[1755193998743,2.20516891,4534.8,4534.7,0.1104]
[1755193998947,3.463,4534.8,4533.6,0.001]
[1755193999180,3.8994,4534.8,4533.7,0.31407917]
[1755193999497,2.2053148,4534.5,4534.4,0.1104]
[1755193999642,5.6693148,4534.5,4534.4,0.1104]
[1755193999989,6.1057148,4534.5,4534.4,0.1104]
[1755194000231,3.9004,4534.5,4533.7,2.20569774]
[1755194000430,6.10575326,4534.5,4534.2,0.1104]
[1755194000599,5.66935326,4534.5,4534.2,0.1104]
[1755194000798,3.464,4534.5,4534.2,0.1104]
[1755194001112,0.1104,4534.8,4534.2,0.1104]
[1755194001113,3.463,4534.4,4534.2,0.1104]
[1755194001315,3.463,4534.3,4534.2,0.1104]
[1755194002200,0.1104,4534.8,4534.2,0.1104]
[1755194002395,3.464,4534.7,4534.2,0.1104]
[1755194002931,5.66922398,4534.7,4534.2,0.1104]
[1755194003774,3.464,4534.7,4534.2,0.1104]
[1755194003979,0.1104,4535.1,4534.3,0.4703]
[1755194004179,3.464,4535.0,4534.6,0.1104]
[1755194004381,3.464,4535.0,4534.6,2.31561893]
[1755194004579,3.464,4535.0,4534.7,0.4703]
[1755194004836,2.20395883,4537.3,4534.7,0.4703]
[1755194004989,2.2046805,4535.9,4535.4,0.1104]
[1755194005300,2.31494219,4536.1,4535.4,0.1104]
[1755194005301,2.20478235,4535.6,4535.4,0.1104]
[1755194005632,3.464,4535.5,4535.4,0.1104]
[1755194006283,3.464,4535.5,4535.4,0.5807]
[1755194006801,3.464,4535.5,4535.4,0.1104]
[1755194007006,2.20466912,4535.9,4535.4,0.1104]
[1755194007206,3.463,4535.8,4535.4,0.1104]
[1755194007419,3.463,4535.8,4535.7,0.1104]
[1755194008990,2.20456068,4536.1,4535.7,0.1104]
[1755194009197,3.463,4536.0,4535.7,0.1104]
[1755194009745,5.66768051,4535.9,4535.7,0.1104]
[1755194009900,0.4528,4536.3,4535.7,0.1104]
[1755194010083,2.20468274,4535.8,4535.7,0.1104]
[1755194010306,5.66768274,4535.8,4535.7,0.1104]
[1755194010506,4.3798,4535.8,4535.2,0.1104]
[1755194010712,5.66773009,4535.8,4535.6,0.001]
[1755194010912,3.12153135,4535.7,4535.6,0.001]
[1755194011248,3.23193135,4535.7,4535.6,0.001]
[1755194012445,3.463,4535.7,4535.6,0.001]
[1755194012650,3.5734,4535.7,4535.6,0.001]
[1755194012947,3.462,4535.7,4535.6,0.001]
[1755194013245,5.66673135,4535.7,4535.6,0.001]
[1755194013445,3.462,4535.7,4535.6,0.001]
[1755194013613,0.002,4536.1,4535.6,0.001]
[1755194013819,3.462,4536.0,4535.7,0.4703]
[1755194014018,3.462,4536.0,4535.8,0.1104]
[1755194015721,0.002,4536.1,4535.9,1.0199]
[1755194015923,3.464,4536.1,4536.0,0.9095]
[1755194016124,0.002,4536.1,4536.0,0.9095]
[1755194016335,0.002,4536.1,4535.9,0.1104]
[1755194016557,3.462,4536.0,4535.9,0.1104]
[1755194018221,3.462,4536.0,4535.9,2.31503414]
[1755194018433,3.462,4536.0,4535.9,2.76710938]
[1755194018632,3.462,4536.0,4535.9,0.56247524]
[1755194019257,0.002,4536.1,4536.0,2.20458553]
[1755194019556,0.002,4536.1,4536.0,0.9095]
[1755194019756,0.002,4536.1,4535.9,0.1104]
[1755194020324,0.002,4536.1,4535.9,0.34200346]
[1755194020524,0.002,4536.1,4535.9,2.54663162]
[1755194020725,0.002,4536.1,4536.0,2.20458553]
[1755194021041,0.002,4536.1,4535.9,2.5466272]
[1755194021662,0.002,4536.1,4536.0,2.20458553]
[1755194021972,0.002,4536.1,4535.9,0.34200346]
[1755194022179,0.002,4536.1,4535.9,0.1104]
[1755194022466,0.002,4536.1,4535.9,2.31501097]
[1755194022632,0.002,4536.1,4536.0,2.20458553]
[1755194023066,3.463,4536.1,4536.0,2.20458553]
[1755194023240,3.463,4536.1,4535.9,0.1104]
[1755194023444,3.12138553,4536.0,4535.9,0.1104]
[1755194023799,3.12138553,4536.0,4535.6,0.001]
[1755194023800,2.20473135,4535.7,4535.6,0.1114]
[1755194024079,3.12153135,4535.7,4535.6,0.001]
[1755194024379,6.58153135,4535.7,4535.6,0.001]
[1755194024584,0.002,4536.1,4535.6,0.001]
[1755194024748,6.22778553,4536.0,4535.6,0.001]
[1755194024941,2.20473135,4535.7,4535.6,0.001]
[1755194025658,2.20463414,4535.9,4535.6,0.001]
[1755194026067,0.5632,4536.0,4535.6,0.001]
[1755194026280,2.20473135,4535.7,4535.6,0.001]
[1755194026648,3.12153135,4535.7,4535.6,0.001]
[1755194026867,3.23193135,4535.7,4535.6,0.001]
[1755194028583,6.69193135,4535.7,4535.6,0.001]
[1755194028955,9.73093135,4535.7,4535.6,0.001]
[1755194031746,9.26693135,4535.7,4535.6,0.001]
[1755194033885,9.76093135,4535.7,4535.6,0.001]
[1755194035304,9.76093135,4535.7,4534.3,0.001]
[1755194035305,2.20536344,4534.4,4534.3,1e-08]
[1755194035588,0.55,4533.8,4533.6,0.001]
[1755194035812,5.66470395,4533.7,4533.6,0.001]
[1755194036083,2.20570395,4533.7,4533.6,0.001]
[1755194036270,5.66470395,4533.7,4533.6,0.001]
[1755194036673,6.61810395,4533.7,4533.6,0.001]
[1755194036858,7.16810395,4533.7,4533.6,0.001]
[1755194038980,2.20589857,4533.3,4533.2,0.001]
[1755194039154,5.66589857,4533.3,4533.2,0.001]
[1755194039354,6.61929857,4533.3,4533.2,0.001]
[1755194039555,7.16929857,4533.3,4533.2,0.001]
[1755194040080,7.16929857,4533.3,4533.2,1e-08]
[1755194040958,2.20589857,4533.3,4533.2,1e-08]
[1755194041153,5.66589857,4533.3,4533.2,1e-08]
[1755194041516,5.66589857,4533.3,4532.3,0.4402]
[1755194041517,0.11009998,4532.0,4531.4,0.55]
[1755194041791,0.4594,4534.6,4533.0,2.20600583]
[1755194041966,2.20555665,4534.1,4533.1,0.467]
[1755194042289,2.20545606,4534.3,4533.1,0.467]
[1755194042458,0.4594,4534.6,4533.1,0.467]
[1755194042459,127.452834,4534.0,4533.4,2.20582822]
[1755194042652,3.46,4533.9,4533.6,2.20574317]
[1755194042853,3.46,4533.9,4533.7,0.7961]
[1755194043295,3.46,4533.9,4533.8,0.7961]
[1755194043659,3.46,4533.9,4533.8,3.0017553]
[1755194044192,127.452834,4534.0,4533.8,3.0017553]
[1755194044392,127.452834,4534.0,4533.9,2.20560665]
[1755194044598,130.912834,4534.0,4533.9,3.00170665]
[1755194045315,130.912834,4534.0,4533.9,3.11210665]
[1755194045517,130.912834,4534.0,4533.9,3.6438863]
[1755194046805,130.912834,4534.0,4533.9,0.1104]
[1755194047200,133.577792,4534.0,4533.9,0.1104]
[1755194047411,133.577792,4534.0,4532.7,0.467]
[1755194047412,2.20571365,4533.7,4532.7,0.467]
[1755194047583,3.46,4533.6,4532.8,2.20613263]
[1755194047787,3.46,4533.6,4532.7,0.467]
[1755194047788,3.46,4533.6,4533.0,2.20604196]
[1755194048092,3.46,4533.6,4533.5,0.1104]
[1755194048294,3.46,4533.6,4532.8,2.20610076]
[1755194048496,3.46,4533.6,4532.1,0.3291]
[1755194048803,3.46,4533.6,4532.7,2.20616264]
[1755194049119,3.46,4533.6,4533.3,0.1104]
[1755194049324,3.039,4533.5,4533.3,0.1104]
[1755194049520,3.46,4533.4,4533.3,0.1104]